bitfinex-derivatives/quotes_BNBF0:USTF0_20250401
["timestamp","ask_amount","ask_price","bid_price","bid_amount"]
[1743496749007,0.32579657,613.88,611.08,1.81932664]
[1743496749210,0.32579657,613.88,611.22,0.32721442]
[1743496751209,0.28398079,613.87,611.22,0.32721442]
[1743496751407,0.32580718,613.86,611.22,0.32721442]
[1743496752212,0.32580718,613.86,611.23,0.986]
[1743496752505,0.32580718,613.86,611.36,0.32713949]
[1743496752906,0.32580718,613.86,611.37,0.572]
[1743496753108,0.32580718,613.86,611.49,0.32706994]
[1743496754208,0.28390897,613.85,611.49,0.32706994]
[1743496759714,0.28390897,613.85,611.49,0.32706994]
[1743496759914,0.32580718,613.86,611.49,0.32706994]
[1743496760516,0.28381867,613.85,611.49,0.32706994]
[1743496761416,0.60963116,613.85,611.49,0.32706994]
[1743496762017,0.60963116,613.85,611.66,2.46168051]
[1743496762317,0.60963116,613.85,611.76,0.32692559]
[1743496762514,0.3258178,613.84,611.76,0.32692559]
[1743496763217,0.28388234,613.83,611.76,0.32692559]
[1743496765914,0.3258178,613.84,611.76,0.32692559]
[1743496766317,0.28388002,613.82,611.76,0.32692559]
[1743496766519,0.32583372,613.81,611.76,0.32692559]
[1743496769422,0.28389276,613.8,611.76,0.32692559]
[1743496772027,0.32584434,613.79,611.76,0.32692559]
[1743496772528,0.28383487,613.78,611.76,0.32692559]
[1743496773930,0.32585496,613.77,611.76,0.32692559]
[1743496775330,0.28394256,613.76,611.76,0.32692559]
[1743496775530,0.32586558,613.75,611.76,0.32692559]
[1743496775932,0.32586558,613.75,611.77,0.808]
[1743496776134,0.32586558,613.75,611.79,0.32690956]
[1743496777732,0.32586558,613.75,611.79,1.31190956]
[1743496778333,0.28390086,613.74,611.79,1.31190956]
[1743496778530,0.60977174,613.74,611.79,1.31190956]
[1743496780929,0.32587088,613.74,611.79,1.31190956]
[1743496781434,0.28390318,613.73,611.79,1.31190956]
[1743496782533,0.3258815,613.72,611.79,1.31190956]
[1743496784031,0.3258815,613.72,611.79,3.14675601]
[1743496784331,0.28392287,613.71,611.79,3.14675601]
[1743496784537,0.32589212,613.7,611.79,3.14675601]
[1743496786341,0.32589212,613.7,611.79,3.71875601]
[1743496786937,0.29968091,613.69,611.79,3.71875601]
[1743496787130,0.32590275,613.68,611.79,3.71875601]
[1743496787336,0.29968091,613.67,611.79,3.71875601]
[1743496787639,0.32591337,613.66,611.79,3.71875601]
[1743496787932,0.29968091,613.65,611.79,3.71875601]
[1743496788536,0.32591337,613.66,611.79,3.71875601]
[1743496790335,0.28391823,613.65,611.79,3.71875601]
[1743496791638,0.28391823,613.65,611.79,6.18043652]
[1743496791838,0.28391823,613.65,611.8,1.83484645]
[1743496792035,0.28391823,613.65,611.82,0.32689353]
[1743496795940,0.32591337,613.66,611.82,0.32689353]
[1743496796239,0.28389855,613.64,611.82,0.32689353]
[1743496799344,0.28389855,613.64,611.83,0.984]
[1743496799543,0.28389855,613.64,611.85,0.3268775]
[1743496801445,0.60982254,613.64,611.85,0.3268775]
[1743496802045,0.32592399,613.64,611.85,0.3268775]
[1743496802346,0.28393329,613.63,611.85,0.3268775]
[1743496804949,0.32592399,613.64,611.85,0.3268775]
[1743496805249,0.28387076,613.62,611.85,0.3268775]
[1743496807644,0.28387076,613.62,612.08,2.46168051]
[1743496807850,0.28387076,613.62,612.1,0.32674399]
[1743496808044,2.48347828,615.03,612.1,0.32674399]
[1743496808251,0.2835816,613.67,612.1,0.32674399]
[1743496808752,0.32525613,614.9,612.1,0.32674399]
[1743496808954,0.28359662,613.67,612.1,0.32674399]
[1743496809154,0.28359662,613.67,612.46,2.46168051]
[1743496809353,0.32525613,614.9,612.48,0.32654127]
[1743496809552,0.28353886,613.74,612.48,0.32654127]
[1743496810053,0.32525613,614.9,612.48,0.32654127]
[1743496810255,0.28353655,613.74,612.48,0.32654127]
[1743496810455,0.32525613,614.9,612.48,0.32654127]
[1743496810655,0.29928844,614.89,612.48,0.32654127]
[1743496810855,0.28353077,613.78,612.48,0.32654127]
[1743496811057,0.32525613,614.9,612.48,0.32654127]
[1743496811258,0.29927904,614.89,612.48,0.32654127]
[1743496811551,0.28352962,613.78,612.48,0.32654127]
[1743496811756,0.32525613,614.9,612.48,0.32654127]
[1743496811957,0.2992839,614.89,612.48,0.32654127]
[1743496812152,0.28354694,613.78,612.48,0.32654127]
[1743496812357,0.325272,614.87,612.48,0.32654127]
[1743496812558,0.29926539,614.86,612.48,0.32654127]
[1743496812759,0.28352615,613.88,612.48,0.32654127]
[1743496812958,0.32528787,614.84,612.48,0.32654127]
[1743496813156,0.29924782,614.83,612.48,0.32654127]
[1743496813352,0.28353424,613.9,612.48,0.32654127]
[1743496813654,0.32530375,614.81,612.48,0.32654127]
[1743496813860,0.2835585,613.89,612.48,0.32654127]
[1743496814360,0.32530375,614.81,612.48,0.32654127]
[1743496814555,0.28357352,613.88,612.48,0.32654127]
[1743496814757,0.32530375,614.81,612.48,0.32654127]
[1743496814958,0.29926792,614.8,612.48,0.32654127]
[1743496815259,0.28357467,613.87,612.48,0.32654127]
[1743496815560,0.32531962,614.78,612.48,0.32654127]
[1743496815755,0.28357698,613.86,612.48,0.32654127]
[1743496816260,0.32531962,614.78,612.48,0.32654127]
[1743496816466,0.28357698,613.85,612.48,0.32654127]
[1743496816657,0.32531962,614.78,612.48,0.32654127]
[1743496816956,0.28359894,613.84,612.48,0.32654127]
[1743496817454,0.32531962,614.78,612.48,0.32654127]
[1743496817654,0.28359778,613.83,612.48,0.32654127]
[1743496818057,0.32531962,614.78,612.48,0.32654127]
[1743496818256,0.28357929,613.82,612.48,0.32654127]
[1743496818658,0.32531962,614.78,612.48,0.32654127]
[1743496818860,0.28356774,613.84,612.48,0.32654127]
[1743496819263,0.32531962,614.78,612.48,0.32654127]
[1743496819461,0.28356774,613.84,612.48,0.32654127]
[1743496819760,0.32531962,614.78,612.48,0.32654127]
[1743496819964,0.2992796,614.77,612.48,0.32654127]
[1743496820166,0.28356889,613.84,612.48,0.32654127]
[1743496820360,0.3253355,614.75,612.48,0.32654127]
[1743496820560,0.29928527,614.74,612.48,0.32654127]
[1743496820760,0.2835712,613.84,612.48,0.32654127]
[1743496820969,0.32535137,614.72,612.48,0.32654127]
[1743496821163,0.29928249,614.71,612.48,0.32654127]
[1743496821359,0.28357467,613.84,612.48,0.32654127]
[1743496821560,0.32536725,614.69,612.48,0.32654127]
[1743496821769,0.29928555,614.68,612.48,0.32654127]
[1743496821962,0.28358854,613.84,612.48,0.32654127]
[1743496822364,0.32537784,614.67,612.48,0.32654127]
[1743496822768,0.28360125,613.83,612.48,0.32654127]
[1743496822966,0.32537784,614.67,612.48,0.32654127]
[1743496823162,0.29929367,614.66,612.48,0.32654127]
[1743496823363,0.28359547,613.82,612.48,0.32654127]
[1743496823668,0.32539372,614.64,612.48,0.32654127]
[1743496823865,0.28359778,613.81,612.48,0.32654127]
[1743496824769,0.28359778,613.81,612.49,0.571]
[1743496824962,0.28359778,613.81,612.51,0.32652528]
[1743496826168,0.32539372,614.64,612.51,0.32652528]
[1743496826371,0.28357929,613.8,612.51,0.32652528]
[1743496826771,0.32539372,614.64,612.51,0.32652528]
[1743496826973,0.28357236,613.79,612.51,0.32652528]
[1743496827368,0.32539372,614.64,612.51,0.32652528]
[1743496827573,0.28357352,613.78,612.51,0.32652528]
[1743496827966,0.32539372,614.64,612.51,0.32652528]
[1743496827967,0.32539372,614.64,612.52,0.983]
[1743496828166,0.2835585,613.77,612.62,0.32646665]
[1743496828574,0.32539372,614.64,612.62,0.32646665]
[1743496828774,0.28355503,613.77,612.62,0.32646665]
[1743496829171,0.32539372,614.64,612.62,0.32646665]
[1743496829673,0.28356196,613.77,612.62,0.32646665]
[1743496829875,0.32539372,614.64,612.62,0.32646665]
[1743496830072,0.28343378,614.63,612.62,0.32646665]
[1743496830274,0.29933385,614.62,612.62,0.32646665]
[1743496830968,0.28343378,614.63,612.62,0.32646665]
[1743496831168,0.29936991,614.62,612.62,0.32646665]
[1743496831373,0.3254096,614.61,612.62,0.32646665]
[1743496831574,0.29936991,614.6,612.62,0.32646665]
[1743496831775,0.32542019,614.59,612.62,0.32646665]
[1743496831976,0.29936991,614.58,612.62,0.32646665]
[1743496832177,0.32543078,614.57,612.62,0.32646665]
[1743496832376,0.29936991,614.56,612.62,0.32646665]
[1743496832577,0.32543078,614.57,612.62,0.32646665]
[1743496832773,0.29928369,614.56,612.62,0.32646665]
[1743496832978,0.32544137,614.55,612.62,0.32646665]
[1743496833178,0.29928369,614.54,612.62,0.32646665]
[1743496833580,0.32545197,614.53,612.62,0.32646665]
[1743496833780,0.29928369,614.52,612.62,0.32646665]
[1743496833982,0.32546256,614.51,612.62,0.32646665]
[1743496834375,0.29928369,614.5,612.62,0.32646665]
[1743496834576,0.32547315,614.49,612.62,0.32646665]
[1743496834779,0.29928369,614.48,612.62,0.32646665]
[1743496835075,0.32548375,614.47,612.62,0.32646665]
[1743496835279,0.29928369,614.46,612.62,0.32646665]
[1743496835577,0.32549434,614.45,612.62,0.32646665]
[1743496838584,0.2835816,614.44,612.62,0.32646665]
[1743496838779,0.32550493,614.43,612.62,0.32646665]
[1743496841586,0.32550493,614.43,612.63,0.807]
[1743496841783,0.32550493,614.43,612.65,0.32645066]
[1743496844281,0.28357236,614.42,612.65,0.32645066]
[1743496844480,0.32551553,614.41,612.65,0.32645066]
[1743496847386,0.28356312,614.4,612.65,0.32645066]
[1743496847587,0.28356312,614.4,612.65,1.30945066]
[1743496849784,0.28356312,614.4,612.65,1.88045066]
[1743496849988,0.32551553,614.41,612.65,1.88045066]
[1743496850583,0.28350652,614.4,612.65,1.88045066]
[1743496853086,0.32551553,614.41,612.65,1.88045066]
[1743496853291,0.28355041,614.39,612.65,1.88045066]
[1743496854194,0.29928788,614.38,612.65,1.88045066]
[1743496855895,0.28355041,614.39,612.65,1.88045066]
[1743496856094,0.32551553,614.41,612.65,1.88045066]
[1743496856295,0.28357352,614.38,612.65,1.88045066]
[1743496858992,0.32551553,614.41,612.65,1.88045066]
[1743496859391,0.28357352,614.37,612.65,1.88045066]
[1743496862004,0.32551553,614.41,612.65,1.88045066]
[1743496862406,0.28357352,614.36,612.65,1.88045066]
[1743496862998,0.60911554,614.36,612.65,2.68845066]
[1743496863205,0.32554732,614.35,612.65,2.68845066]
[1743496865503,0.28355272,614.34,612.65,2.68845066]
[1743496865705,0.32555792,614.33,612.65,2.68845066]
[1743496868308,0.28359778,614.32,612.65,2.68845066]
[1743496877013,0.32556852,614.31,612.65,2.68845066]
[1743496877420,0.60917901,614.31,612.65,2.68845066]
[1743496880113,0.32556852,614.31,612.65,2.68845066]
[1743496880315,0.2836128,614.3,612.65,2.68845066]
[1743496880517,0.32557912,614.29,612.65,2.68845066]
[1743496889527,0.28354463,614.28,612.65,2.68845066]
[1743496889728,0.32558972,614.27,612.65,2.68845066]
[1743496892428,0.28358391,614.26,612.65,2.68845066]
[1743496898134,0.32558972,614.27,612.65,2.68845066]
[1743496898541,0.28353193,614.26,612.65,2.68845066]
[1743496900138,0.60912695,614.26,612.65,2.68845066]
[1743496901137,0.32559502,614.26,612.65,2.68845066]
[1743496901335,0.2836232,614.25,612.65,2.68845066]
[1743496903134,0.32560562,614.24,612.65,2.68845066]
[1743496904431,0.28363361,614.23,612.65,2.68845066]
[1743496905137,0.32561622,614.22,612.65,2.68845066]
[1743496907534,0.28350883,614.21,612.65,2.68845066]
[1743496916139,2.48347828,615.62,612.65,2.68845066]
[1743496916336,0.28333917,614.2,612.65,2.68845066]
[1743496916736,0.32494963,615.48,612.65,2.68845066]
[1743496917041,0.28335532,614.19,612.65,2.68845066]
[1743496917236,0.32494963,615.48,612.65,2.68845066]
[1743496917438,0.29913215,615.47,612.65,2.68845066]
[1743496917740,0.28337262,614.18,612.65,2.68845066]
[1743496918041,0.32502884,615.33,612.65,2.68845066]
[1743496918242,0.28338878,614.17,612.65,2.68845066]
[1743496918542,0.32502884,615.33,612.65,2.68845066]
[1743496918739,0.29913944,615.32,612.65,2.68845066]
[1743496918934,0.28338993,614.16,612.65,2.68845066]
[1743496919137,0.32509224,615.21,612.65,2.68845066]
[1743496919344,0.29914271,615.2,612.65,2.68845066]
[1743496919537,0.28340262,614.15,612.65,2.68845066]
[1743496919742,0.32510809,615.18,612.65,2.68845066]
[1743496920144,0.28340378,614.14,612.65,2.68845066]
[1743496920344,0.32510809,615.18,612.65,2.68845066]
[1743496920546,0.29912798,615.17,612.65,2.68845066]
[1743496920745,0.28340493,614.13,612.65,2.68845066]
[1743496920938,0.32512395,615.15,612.65,2.68845066]
[1743496921342,0.28340724,614.12,612.65,2.68845066]
[1743496921646,0.32512395,615.15,612.65,2.68845066]
[1743496921840,0.28344764,614.11,612.65,2.68845066]
[1743496922242,0.32512395,615.15,612.65,2.68845066]
[1743496922446,0.28344648,614.1,612.65,2.68845066]
[1743496922848,0.32512395,615.15,612.65,2.68845066]
[1743496923050,0.28344648,614.09,612.65,2.68845066]
[1743496923443,0.32512395,615.15,612.65,2.68845066]
[1743496923647,0.28344879,614.08,612.65,2.68845066]
[1743496923948,0.32512395,615.15,612.65,2.68845066]
[1743496924148,0.29923362,615.14,612.65,2.68845066]
[1743496924350,0.28345687,614.07,612.65,2.68845066]
[1743496924548,0.32519267,615.02,612.65,2.68845066]
[1743496924749,0.29924601,615.01,612.65,2.68845066]
[1743496924948,0.28347072,614.06,612.65,2.68845066]
[1743496925248,0.32519267,615.02,612.65,2.68845066]
[1743496925448,0.28347188,614.05,612.65,2.68845066]
[1743496925843,0.32519267,615.02,612.65,2.68845066]
[1743496926044,0.29924928,615.01,612.65,2.68845066]
[1743496926248,0.28347072,614.04,612.65,2.68845066]
[1743496926449,0.32519267,615.02,612.65,2.68845066]
[1743496926644,0.29925443,615.01,612.65,2.68845066]
[1743496927150,0.58274016,615.01,612.65,2.68845066]
[1743496927344,0.29925443,615.0,612.65,2.68845066]
[1743496928044,0.32525613,614.9,612.65,2.68845066]
[1743496928248,0.29925443,614.89,612.65,2.68845066]
[1743496928451,0.325272,614.87,612.65,2.68845066]
[1743496928649,0.29925443,614.86,612.65,2.68845066]
[1743496928845,0.32528787,614.84,612.65,2.68845066]
[1743496929048,0.29925443,614.83,612.65,2.68845066]
[1743496929245,0.32530375,614.81,612.65,2.68845066]
[1743496929445,0.29925443,614.8,612.65,2.68845066]
[1743496929648,0.32531962,614.78,612.65,2.68845066]
[1743496930047,0.29925443,614.77,612.65,2.68845066]
[1743496931350,0.28351922,614.76,612.65,2.68845066]
[1743496931549,0.29925443,614.75,612.65,2.68845066]
[1743496932954,0.32534608,614.73,612.65,2.68845066]
[1743496933144,0.29927834,614.72,612.65,2.68845066]
[1743496933347,0.32534608,614.73,612.65,2.68845066]
[1743496933852,0.29927395,614.72,612.65,2.68845066]
[1743496934054,0.32536196,614.7,612.65,2.68845066]
[1743496934352,0.29927395,614.69,612.65,2.68845066]
[1743496934553,0.32537255,614.68,612.65,2.68845066]
[1743496937655,0.28350652,614.67,612.65,2.68845066]
[1743496937850,0.32538313,614.66,612.65,2.68845066]
[1743496939853,0.29922536,614.65,612.65,2.68845066]
[1743496940052,0.32539372,614.64,612.65,2.68845066]
[1743496940358,0.60890601,614.64,612.65,2.68845066]
[1743496943161,0.32539372,614.64,612.65,2.68845066]
[1743496943361,0.2835146,614.63,612.65,2.68845066]
[1743496943561,0.32540431,614.62,612.65,2.68845066]
[1743496946257,0.28349959,614.61,612.65,2.68845066]
[1743496946857,0.60890919,614.61,612.65,2.68845066]
[1743496949166,0.3254096,614.61,612.65,2.68845066]
[1743496949570,0.28340724,614.6,612.65,2.68845066]
[1743496952068,0.3254096,614.61,612.65,2.68845066]
[1743496952476,0.2835019,614.59,612.65,2.68845066]
[1743496952670,0.32542549,614.58,612.65,2.68845066]
[1743496955475,0.28354117,614.57,612.65,2.68845066]
[1743496955679,0.32543608,614.56,612.65,2.68845066]
[1743496958384,0.28354348,614.55,612.65,2.68845066]
[1743496958580,0.32544667,614.54,612.65,2.68845066]
[1743496961385,0.28356196,614.53,612.65,2.68845066]
[1743496961579,0.32545726,614.52,612.65,2.68845066]
[1743496964482,0.28355965,614.51,612.65,2.68845066]
[1743496964786,0.32546786,614.5,612.65,2.68845066]
[1743496967389,0.28354579,614.49,612.65,2.68845066]
[1743496967690,0.32547845,614.48,612.65,2.68845066]
[1743496970491,0.2835481,614.47,612.65,2.68845066]
[1743496970685,0.60903185,614.47,612.65,2.68845066]
[1743496973093,0.32548375,614.47,612.65,2.68845066]
[1743496973490,0.28355041,614.46,612.65,2.68845066]
[1743496976195,0.32548375,614.47,612.65,2.68845066]
[1743496976395,0.28355041,614.45,612.65,2.68845066]
[1743496978794,0.32549964,614.44,612.65,2.68845066]
[1743496982495,0.28351807,614.43,612.65,2.68845066]
[1743496985197,0.32549964,614.44,612.65,2.68845066]
[1743496985401,0.28351922,614.42,612.65,2.68845066]
[1743496991103,2.48347828,616.08,612.65,2.68845066]
[1743496991300,0.32472276,615.91,612.65,2.68845066]
[1743496991507,0.28325038,614.41,612.65,2.68845066]
[1743496991806,0.32472276,615.91,612.65,2.68845066]
[1743496992009,0.28323655,614.46,612.65,2.68845066]
[1743496992407,0.32472276,615.91,612.65,2.68845066]
[1743496992608,0.28319275,614.64,612.65,2.68845066]
[1743496993006,2.48347828,615.83,612.85,2.46168051]
[1743496993202,0.2987896,615.82,612.85,2.46168051]
[1743496993403,0.28314206,614.86,612.85,2.46168051]
[1743496993604,2.48347828,615.83,612.85,2.46168051]
[1743496993803,0.2987636,615.82,612.85,2.46168051]
[1743496994108,0.28311327,614.93,612.85,2.46168051]
[1743496994310,2.48347828,615.83,612.85,2.46168051]
[1743496994505,0.28311212,615.81,612.85,2.46168051]
[1743496994706,0.32478604,615.79,612.99,0.32626959]
[1743496994907,0.29874938,615.78,612.99,0.32626959]
[1743496995107,0.32479659,615.77,612.99,0.32626959]
[1743496995614,0.29873954,615.76,612.99,0.32626959]
[1743496995811,0.32480714,615.75,613.0,1.789]
[1743496996008,0.32480714,615.75,613.13,0.32619509]
[1743496997314,0.32480714,615.75,613.14,0.569]
[1743496997508,0.32480714,615.75,613.27,0.32612063]
[1743496998714,0.29861351,615.74,613.27,0.32612063]
[1743496998911,0.32480714,615.75,613.27,0.32612063]
[1743497000510,0.28301887,615.74,613.27,0.32612063]
[1743497003212,2.48347828,617.14,613.27,0.32612063]
[1743497003411,0.28279233,615.73,613.27,0.32612063]
[1743497003917,0.32417537,616.95,613.27,0.32612063]
[1743497004118,0.28281646,615.72,613.27,0.32612063]
[1743497004317,0.32417537,616.95,613.27,0.32612063]
[1743497004516,0.298476,616.94,613.27,0.32612063]
[1743497004711,0.28281876,615.71,613.27,0.32612063]
[1743497004914,0.32425947,616.79,613.27,0.32612063]
[1743497005112,0.29848169,616.78,613.27,0.32612063]
[1743497005317,0.28283715,615.7,613.27,0.32612063]
[1743497005518,0.32433309,616.65,613.27,0.32612063]
[1743497005711,0.29848186,616.64,613.27,0.32612063]
[1743497005915,0.2828406,615.69,613.27,0.32612063]
[1743497006213,0.32434886,616.62,613.27,0.32612063]
[1743497006417,0.29846931,616.61,613.27,0.32612063]
[1743497006617,0.28285439,615.68,613.27,0.32612063]
[1743497006819,0.32436465,616.59,613.27,0.32612063]
[1743497007019,0.29845897,616.58,613.27,0.32612063]
[1743497007216,0.28285094,615.67,613.27,0.32612063]
[1743497007417,0.32438043,616.56,613.27,0.32612063]
[1743497007616,0.29843122,616.55,613.27,0.32612063]
[1743497007817,2.48347828,617.5,613.27,0.32612063]
[1743497007818,0.2828383,615.66,613.27,0.32612063]
[1743497008116,0.32439621,616.53,613.27,0.32612063]
[1743497008418,0.28282795,615.67,613.27,0.32612063]
[1743497008814,0.32439621,616.53,613.27,0.32612063]
[1743497009119,0.28278199,615.87,613.27,0.32612063]
[1743497009514,0.32439621,616.53,613.27,0.32612063]
[1743497009712,0.29832207,616.52,613.27,0.32612063]
[1743497009914,0.28279808,615.86,613.27,0.32612063]
[1743497010113,0.32440674,616.51,613.27,0.32612063]
[1743497010415,0.28269011,616.28,613.27,0.32612063]
[1743497010919,2.48347828,617.81,613.27,0.32612063]
[1743497011120,0.28253174,616.32,613.27,0.32612063]
[1743497011319,0.32380798,617.65,613.27,0.32612063]
[1743497011521,0.29809687,617.64,613.27,0.32612063]
[1743497011713,0.28250651,616.53,613.27,0.32612063]
[1743497011919,0.32382371,617.62,613.27,0.32612063]
[1743497012118,0.29802253,617.61,613.27,0.32612063]
[1743497012318,0.28250422,616.54,613.27,0.32612063]
[1743497012518,0.32383944,617.59,613.27,0.32612063]
[1743497012817,0.2824767,616.68,613.27,0.32612063]
[1743497013215,0.32383944,617.59,613.27,0.32612063]
[1743497013420,0.28238273,617.09,613.27,0.32612063]
[1743497013821,0.32383944,617.59,613.27,0.32612063]
[1743497014122,0.28245148,617.08,613.27,0.32612063]
[1743497014423,0.32383944,617.59,613.27,0.32612063]
[1743497014617,0.29791123,617.58,613.27,0.32612063]
[1743497014820,0.28244117,617.07,613.27,0.32612063]
[1743497015018,0.32384992,617.57,613.27,0.32612063]
[1743497015216,0.29781284,617.56,613.27,0.32612063]
[1743497015418,0.28239647,617.06,613.27,0.32612063]
[1743497015620,0.32384992,617.57,613.27,0.32612063]
[1743497015922,0.28242512,617.05,613.27,0.32612063]
[1743497016423,0.32384992,617.57,613.27,0.32612063]
[1743497016622,0.28245378,617.04,613.27,0.32612063]
[1743497016818,0.32384992,617.57,613.27,0.32612063]
[1743497017123,0.28253289,617.03,613.27,0.32612063]
[1743497017324,0.3241386,617.02,613.27,0.32612063]
[1743497017625,0.29816684,617.01,613.27,0.32612063]
[1743497017824,0.32415436,616.99,613.27,0.32612063]
[1743497018120,0.29816684,616.98,613.27,0.32612063]
[1743497018422,0.32416487,616.97,613.27,0.32612063]
[1743497018619,0.29816684,616.96,613.27,0.32612063]
[1743497018823,0.32418063,616.94,613.27,0.32612063]
[1743497019021,0.29816684,616.93,613.27,0.32612063]
[1743497019322,0.32419639,616.91,613.27,0.32612063]
[1743497019520,0.29816684,616.9,613.27,0.32612063]
[1743497019725,0.3242069,616.89,613.27,0.32612063]
[1743497019921,0.29816684,616.88,613.27,0.32612063]
[1743497020119,0.32422267,616.86,613.27,0.32612063]
[1743497020426,0.29816684,616.85,613.27,0.32612063]
[1743497020626,0.32423318,616.84,613.27,0.32612063]
[1743497020829,0.29816684,616.83,613.27,0.32612063]
[1743497021029,0.3242437,616.82,613.27,0.32612063]
[1743497021327,0.29816684,616.81,613.27,0.32612063]
[1743497021525,0.32425421,616.8,613.27,0.32612063]
[1743497021726,0.29816684,616.79,613.27,0.32612063]
[1743497021923,0.32426472,616.78,613.27,0.32612063]
[1743497022221,0.29816684,616.77,613.27,0.32612063]
[1743497022526,0.32427524,616.76,613.27,0.32612063]
[1743497022826,0.32427524,616.76,613.27,0.89512063]
[1743497023822,0.2982,616.75,613.27,0.89512063]
[1743497024022,0.298191,616.74,613.27,0.89512063]
[1743497024224,0.298191,616.73,613.27,0.89512063]
[1743497024527,0.32427524,616.76,613.27,0.89512063]
[1743497024929,0.29814061,616.75,613.27,0.89512063]
[1743497025134,0.32427524,616.76,613.27,1.70412063]
[1743497025732,0.28267174,617.01,613.27,1.70412063]
[1743497027236,0.70055107,620.04,613.27,1.70412063]
[1743497027435,0.28225103,617.0,613.27,1.70412063]
[1743497027833,0.70055107,620.01,613.27,1.70412063]
[1743497028029,0.28225447,616.99,613.27,1.70412063]
[1743497028541,0.32415961,616.98,613.27,1.70412063]
[1743497028737,0.60646674,616.98,613.27,1.70412063]
[1743497030035,0.32415961,616.98,613.27,1.70412063]
[1743497030434,6.02767217,619.55,613.27,1.70412063]
[1743497030435,0.28258566,616.97,613.27,1.70412063]
[1743497033436,0.70004946,618.97,613.27,1.70412063]
[1743497033638,0.2822476,616.96,613.27,1.70412063]
[1743497033838,0.70004946,618.69,613.27,1.70412063]
[1743497034034,0.99785205,618.68,613.27,1.70412063]
[1743497034238,0.32325844,618.7,613.27,1.70412063]
[1743497034239,0.28227965,616.95,614.06,2.46168051]
[1743497034440,0.28227965,616.95,614.2,0.32562683]
[1743497034739,0.32337866,618.47,614.2,0.32562683]
[1743497035039,0.28223844,616.94,614.2,0.32562683]
[1743497035239,0.32337866,618.47,614.2,0.32562683]
[1743497035433,0.28224188,616.93,614.2,0.32562683]
[1743497035934,0.32337866,618.47,614.2,0.32562683]
[1743497036139,0.28223272,616.92,614.2,0.32562683]
[1743497036340,0.32337866,618.47,614.2,0.32562683]
[1743497036739,0.28225447,616.91,614.2,0.32562683]
[1743497036935,0.32337866,618.47,614.2,0.32562683]
[1743497037139,0.29786654,618.46,614.2,0.32562683]
[1743497037341,0.28228538,616.9,614.2,0.32562683]
[1743497037540,0.32348849,618.26,614.2,0.32562683]
[1743497037742,0.29786675,618.25,614.2,0.32562683]
[1743497037941,0.2823037,616.89,614.2,0.32562683]
[1743497038141,0.32357223,618.1,614.2,0.32562683]
[1743497038539,0.28233347,616.88,614.2,0.32562683]
[1743497038739,0.32357223,618.1,614.2,0.32562683]
[1743497038940,0.29790048,618.09,614.2,0.32562683]
[1743497039140,0.32364554,617.96,614.2,0.32562683]
[1743497039336,0.29790048,617.95,614.2,0.32562683]
[1743497039538,0.32366125,617.93,614.2,0.32562683]
[1743497039742,0.29790048,617.92,614.2,0.32562683]
[1743497039943,0.32367697,617.9,614.2,0.32562683]
[1743497040141,0.29790048,617.89,614.2,0.32562683]
[1743497040345,0.32369268,617.87,614.2,0.32562683]
[1743497040545,0.29790048,617.86,614.2,0.32562683]
[1743497040741,0.32375032,617.76,614.2,0.32562683]
[1743497040946,0.29790048,617.75,614.2,0.32562683]
[1743497041149,0.3237608,617.74,614.2,0.32562683]
[1743497041442,0.29783889,617.73,614.2,0.32562683]
[1743497041647,0.32377128,617.72,614.2,0.32562683]
[1743497041845,0.29783889,617.71,614.2,0.32562683]
[1743497042046,0.32378177,617.7,614.2,0.32562683]
[1743497042550,0.29781586,617.69,614.2,0.32562683]
[1743497042745,0.32379225,617.68,614.2,0.32562683]
[1743497042942,0.32379225,617.68,614.21,0.979]
[1743497043249,0.32379225,617.68,614.38,0.32553143]
[1743497045249,0.29783384,617.67,614.38,0.32553143]
[1743497045445,0.32380273,617.66,614.38,0.32553143]
[1743497045650,0.29783384,617.65,614.38,0.32553143]
[1743497045849,0.32381846,617.63,614.38,0.32553143]
[1743497046049,0.29791139,617.62,614.38,0.32553143]
[1743497046245,0.32383419,617.6,614.38,0.32553143]
[1743497046445,0.29793579,617.59,614.38,0.32553143]
[1743497046650,0.32384468,617.58,614.38,0.32553143]
[1743497046852,0.29793579,617.57,614.38,0.32553143]
[1743497047359,0.32385517,617.56,614.38,0.32553143]
[1743497047851,0.29785125,617.55,614.38,0.32553143]
[1743497048051,0.32386566,617.54,614.38,0.32553143]
[1743497048254,0.29785125,617.53,614.38,0.32553143]
[1743497048555,0.32387614,617.52,614.38,0.32553143]
[1743497048857,0.29785125,617.51,614.38,0.32553143]
[1743497049353,2.48347828,618.89,614.38,0.32553143]
[1743497049554,0.28220297,617.5,614.38,0.32553143]
[1743497049749,2.48347828,618.53,614.38,0.31977307]
[1743497049955,0.32342572,618.38,614.38,0.31977307]
[1743497050154,0.28213662,617.49,614.38,0.31977307]
[1743497050349,0.32342572,618.38,614.38,0.31977307]
[1743497050655,0.28217551,617.48,614.38,0.31977307]
[1743497051056,0.29775664,617.47,614.38,0.31977307]
[1743497051258,0.28219381,617.47,614.38,0.31977307]
[1743497051556,0.29775664,617.46,614.58,2.46168051]
[1743497051856,0.29775664,617.46,614.72,0.32535137]
[1743497052758,0.28219381,617.47,614.72,0.32535137]
[1743497053548,0.32391286,617.45,614.72,0.32535137]